bitfinex-derivatives/quotes_ETHF0:USTF0_20250115
["timestamp","ask_amount","ask_price","bid_price","bid_amount"]
[1736943158914,0.78218,3197.4,3196.9,0.5017]
[1736943159118,3.2078,3197.5,3196.9,0.5017]
[1736943159305,0.31288,3197.3,3197.2,0.31287]
[1736943160318,3.2078,3197.5,3197.4,0.31285]
[1736943160319,0.31286,3197.5,3197.4,0.31285]
[1736943160828,0.31286,3197.4,3197.3,0.9556]
[1736943161118,0.78211,3197.6,3197.2,44.32067]
[1736943161119,0.31287,3197.3,3197.2,3.2078]
[1736943161308,0.31287,3197.3,3196.8,0.9556]
[1736943161309,0.31291,3196.9,3196.8,0.9556]
[1736943161504,0.31291,3196.9,3196.8,0.4814]
[1736943161711,0.9433,3197.2,3196.5,41.58714]
[1736943161908,0.31294,3196.6,3196.5,42.06854]
[1736943162409,0.31294,3196.6,3196.5,41.7556]
[1736943162616,0.31294,3196.6,3196.5,40.8]
[1736943162818,3.2078,3196.8,3196.3,1.27656]
[1736943162819,0.31296,3196.4,3196.3,1.27656]
[1736943163316,0.31296,3196.4,3196.3,42.07656]
[1736943164018,0.31295,3196.5,3196.4,0.31294]
[1736943164217,3.26974684,3196.7,3196.6,0.31294]
[1736943164411,3.2078,3196.8,3196.7,0.31293]
[1736943164810,3.52072,3196.8,3196.7,0.31293]
[1736943166419,3.2078,3196.8,3196.7,0.31293]
[1736943167320,0.31287,3197.4,3197.3,0.31286]
[1736943167721,1.09496,3197.6,3197.3,40.8]
[1736943168019,0.31286,3197.4,3197.3,41.11287]
[1736943168917,3.35563869,3197.6,3197.3,40.8]
[1736943169117,0.31286,3197.5,3197.4,0.31285]
[1736943169615,3.66847869,3197.6,3197.5,0.31285]
[1736943174127,3.35563869,3197.6,3197.5,0.31285]
[1736943174321,0.4762,3197.9,3197.3,46.48928095]
[1736943174621,0.31286,3197.5,3197.4,0.31285]
[1736943175523,0.4976,3197.7,3197.3,0.31287]
[1736943175524,0.31286,3197.4,3197.3,0.31287]
[1736943175717,1.2797,3197.7,3197.2,0.31288]
[1736943175718,0.31288,3197.3,3197.2,0.31288]
[1736943175919,0.31288,3197.3,3197.2,41.11288]
[1736943176319,0.31288,3197.3,3197.2,40.8]
[1736943176526,1.28382,3197.6,3196.9,3.2078]
[1736943176527,0.3129,3197.0,3196.9,3.2078]
[1736943176730,0.31293,3196.7,3196.6,1.29473]
[1736943176920,0.31292,3196.8,3196.7,0.31292]
[1736943177121,0.31291,3197.0,3196.9,0.3129]
[1736943179225,0.9521,3197.3,3196.7,5.68928095]
[1736943179424,0.31289,3197.2,3197.1,0.31288]
[1736943179627,3.73145917,3197.2,3197.1,0.31288]
[1736943179923,3.73144917,3197.2,3197.1,0.31288]
[1736943181527,0.31291,3197.1,3197.0,0.31289]
[1736943181930,0.31291,3197.1,3196.7,5.68928095]
[1736943181931,3.41856917,3197.2,3196.7,3.2078]
[1736943182220,0.31292,3196.8,3196.7,3.52072]
[1736943183431,0.31292,3196.9,3196.8,0.31291]
[1736943186026,0.31291,3197.0,3196.9,0.31289]
[1736943186225,0.9438,3197.3,3196.7,5.68928095]
[1736943186527,3.76599593,3197.2,3197.1,0.31288]
[1736943189031,3.45310593,3197.2,3196.9,3.2078]
[1736943189228,0.3129,3197.0,3196.9,3.5207]
[1736943189625,0.3129,3197.0,3196.9,3.2078]
[1736943190628,3.82946422,3197.0,3196.9,3.2078]
[1736943193335,4.07966422,3197.0,3196.9,3.2078]
[1736943194834,0.31293,3196.7,3196.6,41.59684]
[1736943195039,0.31293,3196.7,3196.6,40.8]
[1736943195241,0.4559,3196.8,3196.4,3.2078]
[1736943195432,0.31295,3196.5,3196.4,3.2078]
[1736943195734,0.31295,3196.5,3196.4,44.0078]
[1736943195941,0.31295,3196.5,3196.4,44.32076]
[1736943196440,0.31293,3196.7,3196.6,0.31293]
[1736943197135,0.7418,3197.0,3196.5,0.4983]
[1736943197439,0.31293,3196.8,3196.7,0.31291]
[1736943199841,0.31294,3196.7,3196.6,0.31293]
[1736943201145,5.7373839,3196.7,3196.2,0.4853]
[1736943201344,0.31297,3196.3,3196.2,0.4853]
[1736943201740,0.31297,3196.3,3196.2,41.2853]
[1736943202338,0.31297,3196.3,3196.2,40.8]
[1736943204140,3.65177183,3196.3,3196.2,40.8]
[1736943204341,0.31301,3195.9,3195.8,0.482]
[1736943204540,0.31301,3195.9,3195.8,0.79502]
[1736943204937,0.31301,3195.9,3195.8,41.59502]
[1736943208150,0.78243,3196.3,3195.8,41.282]
[1736943208448,0.31301,3195.9,3195.8,41.282]
[1736943209347,0.31301,3195.9,3195.8,41.59502]
[1736943209535,0.31301,3195.9,3195.8,41.282]
[1736943210037,0.31301,3195.9,3195.8,41.59502]
[1736943210741,0.31301,3195.9,3195.8,41.282]
[1736943211745,0.31301,3195.9,3195.8,41.59502]
[1736943217449,0.31301,3195.9,3195.8,41.282]
[1736943219248,0.31302,3195.8,3195.7,0.4612]
[1736943219450,3.53634186,3195.9,3195.7,0.4612]
[1736943219651,0.31301,3195.9,3195.8,41.11302]
[1736943220248,0.31301,3195.9,3195.8,40.8]
[1736943221152,0.31301,3195.9,3195.8,41.11302]
[1736943221547,0.56331,3195.9,3195.8,41.11302]
[1736943221949,0.56331,3195.9,3195.8,40.8]
[1736943224451,0.56331,3195.9,3195.8,41.11302]
[1736943226856,0.56331,3195.9,3195.8,40.8]
[1736943227157,3.82182484,3195.9,3195.8,40.8]
[1736943227751,3.82182484,3195.9,3195.8,41.11302]
[1736943228865,3.9584,3196.2,3195.8,41.11302]
[1736943228866,3.30998,3196.2,3196.1,0.31299]
[1736943229065,2.997,3196.2,3196.1,0.31299]
[1736943229465,2.997,3196.2,3196.1,41.11299]
[1736943230162,3.0704,3196.2,3196.1,41.11299]
[1736943230859,0.0734,3196.2,3196.1,41.11299]
[1736943232067,0.0734,3196.2,3196.1,41.58679]
[1736943235960,0.38638,3196.2,3196.1,41.58679]
[1736943236462,0.38638,3196.2,3196.1,41.2738]
[1736943237265,0.38638,3196.2,3196.1,41.58679]
[1736943237467,3.83972108,3196.2,3196.1,40.8]
[1736943237658,0.31299,3196.1,3195.8,0.31301]
[1736943237967,0.31302,3195.8,3195.7,0.4612]
[1736943238161,0.31302,3195.8,3195.7,41.57423]
[1736943239567,3.61664091,3196.0,3195.7,43.74268095]
[1736943239766,3.61664091,3196.0,3195.9,0.31301]
[1736943240362,3.92964091,3196.0,3195.9,0.31301]
[1736943240760,0.0734,3196.2,3195.7,2.94268095]
[1736943241065,0.38638,3196.2,3196.1,0.31299]
[1736943241253,0.38638,3196.2,3196.1,41.11299]
[1736943247568,0.38638,3196.2,3196.1,44.32079]
[1736943247770,0.0734,3196.2,3196.1,44.32079]
[1736943248065,0.0734,3196.2,3196.1,45.29549]
[1736943248272,0.38638,3196.2,3196.1,45.29549]
[1736943249664,0.0734,3196.2,3195.9,4.87968247]
[1736943249870,0.313,3196.0,3195.9,4.87968247]
[1736943250271,3.81190035,3196.0,3195.9,4.87968247]
[1736943250470,3.81190035,3196.0,3195.7,48.89374371]
[1736943250471,0.31302,3195.8,3195.7,41.57422]
[1736943251271,0.38642,3195.8,3195.7,41.57422]
[1736943252464,0.38642,3195.8,3195.7,40.8]
[1736943253376,0.38642,3195.8,3195.7,41.11303]
[1736943254464,0.0734,3195.8,3195.7,43.59451095]
[1736943254971,0.9919,3196.5,3195.7,43.28148095]
[1736943255174,0.31298,3196.3,3196.2,0.31296]
[1736943255576,3.6698943,3196.3,3196.2,0.31296]
[1736943255968,0.31299,3196.1,3196.0,3.2078]
[1736943256166,0.313,3196.0,3195.9,0.313]
[1736943256668,0.31301,3195.9,3195.8,0.78761]
[1736943258274,0.31301,3195.9,3195.8,0.77481]
[1736943266379,3.56030645,3195.9,3195.6,3.52083]
[1736943266577,0.31303,3195.7,3195.6,3.52083]
[1736943266880,1.4692,3195.8,3195.7,0.31301]
[1736943266881,0.31302,3195.8,3195.7,0.31301]
[1736943267079,2.48148095,3196.9,3195.7,3.43758095]
[1736943267384,3.73309298,3196.2,3196.1,0.31297]
[1736943267683,0.31299,3196.2,3196.1,0.31297]
[1736943268074,0.31296,3196.4,3196.3,0.31296]
[1736943268276,3.2078,3196.5,3196.2,0.4663]
[1736943268689,0.31298,3196.2,3196.1,0.31298]
[1736943270689,3.90981415,3196.4,3196.3,0.31297]
[1736943271487,3.59685415,3196.4,3196.3,0.31297]
[1736943271680,3.90981415,3196.4,3196.3,0.31297]
[1736943272189,0.9623,3196.9,3196.7,0.31292]
[1736943272190,0.31292,3196.8,3196.7,0.31292]
[1736943284390,0.31293,3196.7,3196.6,0.76753]
[1736943285296,0.31293,3196.7,3196.6,0.4546]
[1736943285487,0.31293,3196.7,3196.6,0.76754]
[1736943285695,0.31293,3196.7,3196.6,0.4546]
[1736943286290,0.31294,3196.6,3196.5,3.2078]
[1736943287092,0.78774,3196.6,3196.5,3.2078]
[1736943289902,0.31296,3196.4,3196.3,41.29]
[1736943291294,0.31296,3196.4,3196.3,40.8]
[1736943291501,0.31297,3196.3,3196.2,3.2078]
[1736943292205,0.31297,3196.3,3196.2,44.0078]
[1736943292600,0.31297,3196.3,3196.2,3.2078]
[1736943300813,3.67245939,3196.3,3196.2,3.2078]
[1736943302012,0.313,3196.0,3195.9,0.9714]
[1736943302215,0.313,3196.0,3195.9,1.28441]
[1736943302711,0.313,3196.0,3195.9,0.9714]
[1736943303208,0.313,3196.0,3195.9,1.28441]
[1736943303514,0.313,3196.0,3195.9,0.9714]
[1736943304213,0.313,3196.0,3195.9,1.28441]
[1736943304610,0.313,3196.0,3195.9,0.9714]
[1736943306711,0.313,3196.0,3195.9,1.28441]
[1736943308217,3.52077,3196.3,3196.2,0.31298]
[1736943308413,3.2078,3196.3,3196.2,0.31298]
[1736943308718,3.52077,3196.3,3196.2,0.31298]
[1736943311709,3.2078,3196.3,3196.1,2.48148095]
[1736943311912,0.31298,3196.2,3196.1,2.79446095]
[1736943312112,0.31296,3196.4,3196.1,5.68928095]
[1736943312317,0.7823,3196.9,3196.1,5.68928095]
[1736943312520,0.31295,3196.6,3196.5,0.31294]
[1736943312814,0.31295,3196.6,3196.5,1.28714]
[1736943313208,0.31293,3196.8,3196.7,0.31292]
[1736943313409,0.31293,3196.8,3196.7,2.79440095]
[1736943313916,0.31289,3197.2,3197.1,0.31287]
[1736943314217,0.3129,3197.1,3197.0,0.31289]
[1736943314416,0.3129,3197.1,3197.0,1.28709]
[1736943316715,0.3129,3197.1,3197.0,0.4859]
[1736943316917,0.31292,3196.8,3196.7,40.8]
[1736943317122,0.9385,3197.1,3196.7,40.8]
[1736943317414,0.78188,3198.6,3197.2,0.78218]
[1736943317625,0.3128,3198.0,3197.9,3.2078]
[1736943317815,3.95566324,3198.4,3197.9,3.6936]
[1736943318010,0.3128,3198.1,3198.0,0.31279]
[1736943318218,0.3128,3198.0,3197.9,4.0064]
[1736943318618,3.73677173,3198.0,3197.9,4.0064]
[1736943318812,3.73677173,3198.0,3197.9,3.6936]
[1736943319017,3.73677173,3198.0,3197.9,4.00641]
[1736943320317,3.73677173,3198.0,3197.9,3.6936]
[1736943320518,3.73677173,3198.0,3197.9,4.00641]
[1736943324724,3.73677173,3198.0,3197.9,3.6936]
[1736943324927,0.31284,3197.6,3197.5,3.2078]
[1736943325431,0.31284,3197.6,3197.5,44.0078]
[1736943325633,3.92237567,3197.6,3197.5,44.0078]
[1736943326228,3.92237567,3197.6,3197.5,40.8]
[1736943327330,3.92237567,3197.6,3197.5,41.11285]
[1736943327530,3.92237567,3197.6,3197.5,40.8]
[1736943328123,1.4937,3197.9,3197.5,40.8]
[1736943328328,0.31284,3197.7,3197.6,0.77334]
[1736943329329,0.31284,3197.7,3197.6,0.4605]
[1736943329937,0.31284,3197.6,3197.5,40.8]
[1736943330231,2.27575,3197.9,3196.9,0.5032]
[1736943330232,0.3129,3197.0,3196.9,0.5032]
[1736943330636,0.3129,3197.0,3196.9,41.3032]
[1736943331537,0.3129,3197.0,3196.9,40.8]
[1736943331742,3.84219867,3197.0,3196.9,40.8]
[1736943334833,7.04999867,3197.0,3196.9,40.8]
[1736943335233,10.04699867,3197.0,3196.9,40.8]
[1736943338541,10.04699867,3197.0,3196.9,40.27520009]
[1736943338851,10.04699867,3197.0,3195.9,2.79448095]
[1736943338852,11.73709867,3197.0,3195.8,0.4993]
[1736943339047,0.31301,3195.9,3195.8,0.4993]
[1736943339548,0.31301,3195.9,3195.8,41.2993]
[1736943345753,0.31301,3195.9,3195.8,40.8]
[1736943352249,2.48148095,3196.0,3195.7,0.9435]
[1736943352448,0.31302,3195.8,3195.7,0.9435]
[1736943352854,3.66002547,3195.8,3195.7,41.7435]
[1736943356158,6.86782547,3195.8,3195.7,41.7435]
[1736943356453,0.31305,3195.5,3195.4,0.4852]
[1736943356956,3.8694312,3195.5,3195.4,41.2852]
[1736943357947,3.8694312,3195.5,3195.4,0.4852]
[1736943358459,3.8694312,3195.5,3195.2,41.2633]
[1736943358651,0.31307,3195.3,3195.2,41.2633]
[1736943362855,0.78257,3195.7,3195.2,41.57636]
[1736943363170,0.78257,3195.7,3195.2,41.2633]
[1736943363355,0.31307,3195.3,3195.2,41.57637]
[1736943363551,0.31307,3195.3,3195.2,41.2633]
[1736943367653,0.31307,3195.3,3195.2,41.57638]
[1736943367855,0.31307,3195.3,3195.2,41.2633]
[1736943370864,0.31307,3195.3,3195.2,41.57638]
[1736943372862,0.31307,3195.3,3195.2,41.2633]
[1736943374265,3.2078,3196.2,3195.2,41.2633]
[1736943374472,0.31306,3195.5,3195.4,6.00232095]
[1736943374767,0.31306,3195.5,3195.4,5.68928095]
[1736943374967,0.31306,3195.5,3195.4,3.2078]
[1736943375169,0.31306,3195.5,3195.4,44.0078]
[1736943376174,0.31306,3195.5,3195.4,44.32086]
[1736943376663,0.78257,3195.8,3195.4,46.48928095]
[1736943376864,0.31304,3195.7,3195.6,0.31303]
[1736943377466,0.78249,3196.1,3195.4,46.48928095]
[1736943377669,0.31301,3196.0,3195.9,2.79447095]
[1736943377965,3.2078,3196.2,3196.1,0.31299]
[1736943378176,0.31295,3196.5,3196.4,0.31295]
[1736943378476,0.31295,3196.5,3196.4,2.79443095]
[1736943378668,0.31295,3196.5,3196.4,43.59443095]
[1736943379776,3.52074,3196.6,3196.5,0.31295]
[1736943379966,3.52074,3196.6,3196.5,0.9382]
[1736943380373,3.52074,3196.6,3196.5,1.25115]
[1736943380870,3.52074,3196.6,3196.5,0.9382]
[1736943381171,3.2078,3196.6,3196.4,40.8]
[1736943381474,0.31297,3196.3,3196.2,0.4724]
[1736943381885,0.31297,3196.3,3196.2,41.2724]
[1736943382370,0.4646,3196.5,3195.9,5.34548247]
[1736943382677,0.313,3196.0,3195.9,6.11318247]
[1736943382874,0.313,3196.0,3195.9,1.2335]
[1736943383073,0.4646,3196.5,3195.9,0.9205]
[1736943383376,0.31299,3196.2,3196.1,0.31298]
[1736943384476,0.4646,3196.5,3195.9,0.9205]
[1736943384664,0.313,3196.1,3196.0,0.31299]
[1736943385965,0.313,3196.0,3195.9,0.4547]
[1736943386166,0.31301,3195.9,3195.8,3.2078]
[1736943386372,0.76721,3195.9,3195.8,3.2078]
[1736943387070,0.31304,3195.6,3195.5,0.4648]
[1736943387279,0.9791,3195.8,3195.3,3.52086]
[1736943387581,0.9791,3195.8,3195.1,5.37978247]
[1736943387582,0.31308,3195.2,3195.1,5.34448247]
[1736943387878,0.31308,3195.2,3195.1,45.67968247]
[1736943388079,0.31308,3195.2,3195.1,40.8]
[1736943388281,3.2078,3195.4,3194.9,3.2078]
[1736943388480,0.31309,3195.0,3194.9,3.2078]
[1736943388784,0.31309,3195.0,3194.9,44.0078]
[1736943389170,3.2078,3195.4,3194.9,44.0078]
[1736943389378,0.31307,3195.3,3195.2,0.31307]
[1736943390371,3.6957,3195.8,3195.0,2.48148095]
[1736943390573,0.31303,3195.7,3195.4,2.48148095]
[1736943390780,0.31304,3195.6,3195.5,1.23424]
[1736943390967,3.2078,3195.8,3195.5,0.9212]
[1736943391173,3.2078,3195.8,3195.7,0.31303]
[1736943391376,0.313,3196.0,3195.9,0.31301]
[1736943392779,0.31299,3196.1,3196.0,0.31299]
[1736943394384,0.31299,3196.1,3196.0,41.11299]
[1736943394771,0.4981,3196.5,3196.0,43.28148095]
[1736943394981,0.31297,3196.4,3196.3,0.31296]
[1736943395482,3.55541424,3196.6,3196.1,4.1671]
[1736943395684,0.31293,3196.7,3196.3,2.48148095]
[1736943395885,0.31293,3196.7,3196.6,0.31294]
[1736943396179,0.31294,3196.6,3196.5,0.31294]
[1736943399690,0.31296,3196.5,3196.4,0.31295]
[1736943402887,0.31295,3196.6,3196.5,0.31294]
[1736943404294,0.4912,3196.9,3196.3,6.14838095]
[1736943404590,0.31293,3196.8,3196.7,0.31292]
[1736943405001,0.31294,3196.7,3196.6,0.31293]
[1736943409805,0.31296,3196.5,3196.4,0.31294]
[1736943411300,0.31296,3196.4,3196.3,3.2078]
[1736943411500,0.76636,3196.4,3196.3,3.52077]
[1736943411691,0.31296,3196.4,3196.3,6.00225095]
[1736943413002,0.31296,3196.4,3196.3,3.2078]
[1736943413801,0.31296,3196.4,3196.3,3.52077]
[1736943416005,0.31296,3196.4,3196.3,0.31297]
[1736943417097,1.23572,3196.8,3196.1,3.6987]
[1736943417397,0.31295,3196.6,3196.5,0.31294]
[1736943417996,0.31295,3196.6,3196.5,41.11294]
[1736943418893,0.31295,3196.6,3196.5,40.8]
[1736943419398,0.31295,3196.6,3196.5,41.11295]
[1736943419899,0.31295,3196.6,3196.5,40.8]
[1736943420703,0.31295,3196.6,3196.5,0.31294]
[1736943421095,0.31295,3196.6,3196.5,41.11294]
[1736943421802,0.31295,3196.5,3196.4,0.78725]
[1736943422002,0.31295,3196.5,3196.4,0.31295]
[1736943422397,0.31294,3196.7,3196.6,0.31293]
[1736943423001,0.31294,3196.7,3196.6,0.77513]
[1736943423201,0.31294,3196.7,3196.6,41.57513]
[1736943425402,0.31294,3196.7,3196.6,41.2622]
[1736943425900,0.78233,3196.7,3196.3,3.25314095]
[1736943426204,0.31296,3196.4,3196.3,3.25314095]
[1736943426405,0.31296,3196.4,3196.3,44.05314095]
[1736943426907,0.31296,3196.4,3196.3,40.8]
[1736943427108,0.31296,3196.4,3196.1,3.2078]
[1736943427297,0.31298,3196.2,3196.1,3.2078]
[1736943427500,0.31302,3195.8,3195.6,7.31952371]
[1736943427910,0.31304,3195.6,3195.5,0.467]
[1736943428303,0.31305,3195.5,3195.4,8.08748247]
[1736943428703,0.31305,3195.5,3195.4,3.2078]
[1736943428905,0.31305,3195.5,3195.4,40.8]
[1736943432817,0.31308,3195.2,3195.1,0.4702]
[1736943433114,0.31308,3195.2,3195.1,41.2702]
[1736943434605,0.31307,3195.3,3195.1,43.75168095]
[1736943434804,6.98736,3195.8,3195.3,0.31306]
[1736943434805,0.31306,3195.4,3195.3,0.31306]
[1736943435316,3.25578707,3195.7,3195.3,3.2078]
[1736943435510,2.997,3195.8,3195.5,2.48148095]
[1736943435511,0.31304,3195.6,3195.5,2.48148095]
[1736943435712,0.31306,3195.4,3195.3,3.2078]
[1736943437122,1.24087,3195.7,3195.2,2.48148095]
[1736943437325,0.31307,3195.3,3195.2,2.48148095]
[1736943437830,0.31308,3195.2,3195.1,41.2702]
[1736943438624,0.31308,3195.2,3195.1,41.58328]
[1736943439629,0.31308,3195.2,3195.1,41.2702]
[1736943440528,3.6981,3195.4,3194.9,0.9812]
[1736943440834,0.31311,3194.8,3194.7,0.4694]
[1736943441035,0.31311,3194.8,3194.7,41.2694]
[1736943441924,0.31311,3194.8,3194.7,0.4694]
[1736943442127,0.31314,3194.5,3194.4,0.989]
[1736943442322,0.31314,3194.5,3194.4,1.4584]
[1736943442529,0.31314,3194.5,3194.4,42.2584]
[1736943442928,0.31314,3194.5,3194.4,41.11315]
[1736943444434,0.31314,3194.5,3194.4,41.61495]
[1736943446237,0.31314,3194.5,3194.4,40.8]
[1736943446640,0.31314,3194.6,3194.5,0.31313]
[1736943446830,3.2078,3195.0,3194.6,2.79460095]
[1736943446831,0.31313,3194.7,3194.6,2.79460095]
[1736943449432,3.5209,3195.0,3194.9,0.3131]
[1736943449639,0.31309,3195.2,3195.1,0.31308]
[1736943450137,2.20719,3195.7,3195.0,0.978]
[1736943450138,0.31307,3195.3,3195.2,0.31306]
[1736943450439,0.31305,3195.6,3195.5,0.31304]
[1736943450630,0.31306,3195.4,3195.3,0.31306]
[1736943451435,0.31305,3195.5,3195.4,0.31304]
[1736943451635,3.2078,3196.5,3195.4,3.2078]
[1736943451843,0.31302,3195.8,3195.7,2.79449095]
[1736943452438,0.31301,3195.9,3195.8,0.313]
[1736943452637,3.99018,3196.5,3196.0,0.31299]
[1736943452638,0.313,3196.1,3196.0,0.31299]
[1736943453145,3.59034887,3196.4,3195.7,2.94988095]
[1736943453337,0.31301,3196.0,3195.9,0.31299]
[1736943456537,0.31302,3195.8,3195.7,0.4684]
[1736943457238,0.31302,3195.8,3195.7,0.78143]
[1736943457946,0.31301,3195.9,3195.8,0.31301]
[1736943458248,0.31301,3195.9,3195.7,0.4684]
[1736943458249,0.78243,3196.3,3195.7,0.4684]
[1736943458446,0.31302,3195.8,3195.7,0.4684]
[1736943459444,0.31305,3195.5,3195.4,46.48928095]
[1736943459640,0.31305,3195.5,3195.4,44.4956]
[1736943460037,0.31305,3195.5,3195.4,3.6956]
[1736943460437,0.31305,3195.5,3195.4,4.00866]
[1736943461548,0.313,3196.0,3195.9,0.313]
[1736943461851,3.2078,3196.1,3196.0,0.313]
[1736943462245,3.2078,3196.1,3196.0,41.113]
[1736943462751,0.31297,3196.4,3196.3,0.31296]
[1736943465453,0.31296,3196.5,3196.4,0.31295]
[1736943466255,0.31296,3196.5,3196.1,0.4948]
[1736943466256,0.4972,3196.6,3196.1,0.4948]
[1736943466455,0.31298,3196.2,3196.1,0.4948]
[1736943468554,3.2078,3196.5,3195.9,3.2078]
[1736943468757,0.313,3196.0,3195.9,3.2078]
[1736943473953,0.313,3196.0,3195.9,3.98131]
[1736943474258,0.313,3196.0,3195.9,3.6683]
[1736943474757,0.313,3196.0,3195.9,3.98131]
[1736943475159,0.313,3196.0,3195.9,3.6683]
[1736943475459,0.313,3196.0,3195.9,3.2078]
[1736943481459,0.31301,3195.9,3195.8,40.8]
[1736943481657,3.6628,3196.4,3195.8,40.8]
[1736943481853,3.2078,3196.4,3196.1,0.31298]
[1736943482058,3.2078,3196.4,3195.9,0.9383]
[1736943482059,3.69277355,3196.3,3196.2,0.78697]
[1736943482454,3.2078,3196.4,3196.2,0.474]
[1736943482665,0.31296,3196.5,3196.4,0.31295]
[1736943483866,1.45336707,3196.9,3196.2,0.474]
[1736943484057,0.31296,3196.5,3196.4,0.31295]
[1736943486765,0.31297,3196.4,3196.3,0.31296]
[1736943487661,0.31297,3196.4,3196.2,0.474]
[1736943487662,0.78236,3196.6,3196.2,0.474]
[1736943487863,0.31297,3196.3,3196.2,0.474]
[1736943488063,0.31297,3196.3,3196.2,0.78698]
[1736943490171,0.31297,3196.3,3196.2,0.474]
[1736943492474,0.31297,3196.3,3196.2,0.78698]
[1736943494469,0.31296,3196.5,3196.4,0.31294]
[1736943496673,0.31295,3196.6,3196.5,0.31293]
[1736943497376,0.67107707,3196.9,3196.5,3.2078]
[1736943497569,0.31293,3196.8,3196.7,0.31292]
[1736943500574,0.31293,3196.7,3196.6,0.77673]
[1736943500870,0.67107707,3196.9,3196.5,3.2078]
[1736943500871,0.31294,3196.6,3196.5,3.2078]
[1736943501067,0.31297,3196.4,3196.3,0.31296]
[1736943501370,0.31295,3196.5,3196.4,0.31294]
[1736943502379,1.28061,3196.8,3196.4,3.2078]
[1736943502572,1.28061,3196.8,3196.6,0.31293]
[1736943502573,0.31295,3196.7,3196.6,0.31293]
[1736943503275,1.28061,3196.8,3196.4,3.2078]
[1736943503469,0.31295,3196.6,3196.5,0.31294]
[1736943503879,1.28061,3196.8,3196.4,3.2078]
[1736943504071,0.9618,3196.7,3196.2,0.474]
[1736943504271,0.31297,3196.4,3196.3,0.31296]
[1736943505674,0.31297,3196.3,3196.2,0.474]
[1736943505874,0.31299,3196.1,3196.0,3.2078]
[1736943507680,3.2078,3196.1,3195.8,40.8]
[1736943507875,0.31301,3195.9,3195.8,40.8]
[1736943508672,0.31308,3195.3,3195.2,0.31307]
[1736943508869,0.31308,3195.2,3195.1,3.6694]
[1736943509071,0.31308,3195.2,3195.1,44.78249]
[1736943509679,0.31308,3195.2,3195.1,44.4694]
[1736943510179,0.31308,3195.2,3195.1,44.78249]
[1736943510779,0.31306,3195.4,3195.3,0.31306]
[1736943511878,0.31308,3195.3,3195.2,0.31307]
[1736943512078,0.31308,3195.3,3195.2,0.81337]
[1736943513487,0.31308,3195.3,3195.1,44.4694]
[1736943513488,1.27361,3195.6,3195.1,44.4694]
[1736943513677,0.31308,3195.2,3195.1,44.0078]
[1736943514078,0.31308,3195.2,3195.1,40.8]
[1736943516085,0.31308,3195.2,3195.1,41.11309]
[1736943516784,0.491,3195.6,3195.3,0.31306]
[1736943517080,0.477,3195.8,3195.4,0.4953]
[1736943517384,0.31304,3195.7,3195.6,0.31303]
[1736943517684,0.31304,3195.6,3195.5,0.80734]
[1736943519085,0.31304,3195.6,3195.5,4.01514]
[1736943522591,0.31304,3195.6,3195.5,3.7021]
[1736943522880,0.31305,3195.5,3195.4,0.4953]
[1736943523085,0.78257,3195.8,3195.1,44.5026]
[1736943523086,0.31308,3195.2,3195.1,44.5026]
[1736943523288,0.31308,3195.2,3195.1,44.0078]
[1736943523686,0.31308,3195.2,3195.1,40.8]
[1736943532183,2.48148095,3195.3,3194.9,0.4948]
[1736943532388,0.31311,3194.8,3194.7,1.0777048]
[1736943532788,0.31311,3194.8,3194.7,41.8777048]
[1736943536196,0.31311,3194.8,3194.7,41.4126048]
[1736943536993,0.31311,3194.8,3194.7,0.6126048]
[1736943541200,0.31311,3194.8,3194.7,41.4126048]
[1736943542300,0.31311,3194.8,3194.7,0.6126048]
[1736943543389,3.81350605,3194.8,3194.7,0.6126048]
[1736943544204,0.31311,3194.8,3194.7,0.6126048]
[1736943545701,0.31311,3194.8,3194.7,0.9257248]
[1736943545999,0.31311,3194.8,3194.7,1.4025248]
[1736943546200,0.31311,3194.8,3194.7,42.2025248]
[1736943551095,0.31311,3194.8,3194.7,42.6949248]
[1736943551601,0.7827,3195.2,3194.7,42.3818048]
[1736943551901,0.3131,3195.0,3194.9,2.79457095]
[1736943552101,0.3131,3195.0,3194.9,6.00237095]
[1736943552499,0.3131,3195.0,3194.9,46.80237095]
[1736943553197,0.3131,3195.0,3194.9,46.48928095]
[1736943553607,0.3131,3195.0,3194.9,44.0078]
[1736943553999,0.3131,3195.0,3194.9,44.3209]
[1736943554193,0.3131,3195.0,3194.9,44.0078]
[1736943554395,0.78268,3195.3,3194.8,0.4962]
[1736943554609,0.3131,3194.9,3194.8,0.4962]
[1736943554901,0.3131,3194.9,3194.8,41.2962]
[1736943560102,0.3131,3195.0,3194.9,0.31309]
[1736943560606,0.31311,3194.9,3194.8,0.80931]
[1736943561300,0.3131,3195.1,3195.0,0.31308]
[1736943561504,0.31308,3195.2,3195.1,0.31307]
[1736943561706,0.31308,3195.3,3195.2,0.31306]
[1736943562002,0.31306,3195.4,3195.3,0.31305]
[1736943562205,0.31306,3195.4,3195.3,0.77455]
[1736943564105,0.31306,3195.4,3195.3,0.4615]
[1736943564906,0.31306,3195.4,3195.3,0.77457]
[1736943565811,0.31306,3195.4,3195.3,0.4615]
[1736943566009,0.31306,3195.4,3195.1,3.2078]
[1736943566217,0.31306,3195.4,3194.8,41.58279]
[1736943566218,0.31311,3194.9,3194.8,40.8]
[1736943567412,0.31311,3194.9,3194.8,41.11311]
[1736943569910,0.31311,3194.9,3194.8,0.31311]
[1736943570412,0.31311,3194.9,3194.8,41.11311]